bitfinex-derivatives/quotes_ETHF0:USTF0_20250624
["timestamp","ask_amount","ask_price","bid_price","bid_amount"]
[1750759616037,1.09005455,2416.3,2415.7,3.2078]
[1750759616239,3.2078,2416.1,2415.1,3.2078]
[1750759616440,3.13445455,2416.0,2415.2,2.1179]
[1750759616738,3.2078,2415.8,2415.2,2.1179]
[1750759616940,3.10935455,2415.7,2415.2,2.1179]
[1750759617131,2.0193,2415.7,2415.2,0.7582515]
[1750759617440,1.78894895,2415.6,2415.2,0.7582515]
[1750759617640,1.3456,2415.5,2415.2,0.7582515]
[1750759617847,1.3456,2415.5,2415.2,0.0637515]
[1750759617848,1.09019539,2415.4,2415.2,0.0637515]
[1750759618139,1.3456,2415.3,2415.0,3.2078]
[1750759618440,1.3456,2415.3,2414.8,1.3622]
[1750759618937,1.3456,2415.3,2414.9,3.2078]
[1750759619343,3.2078,2415.2,2414.5,3.2078]
[1750759619537,3.06237064,2415.1,2414.5,3.2078]
[1750759619732,2.6749,2415.1,2414.5,3.2078]
[1750759619939,1.08871941,2415.0,2414.3,0.6594]
[1750759620138,4.5211,2414.9,2414.5,0.0637515]
[1750759621227,4.5211,2414.9,2414.3,0.6594]
[1750759623037,3.2078,2414.6,2413.8,3.2078]
[1750759623240,2.7938,2414.5,2413.8,3.2078]
[1750759623741,2.7938,2414.5,2414.1,3.2078]
[1750759624337,2.867,2414.8,2414.1,3.2078]
[1750759624544,3.2078,2414.9,2414.2,2.1424]
[1750759624740,3.2078,2414.9,2414.3,0.6627]
[1750759625042,3.2078,2414.9,2414.4,1.4375]
[1750759626946,4.5834,2415.2,2414.7,3.2078]
[1750759627147,5.9837,2415.2,2414.4,4.6453]
[1750759632153,4.5834,2415.2,2414.7,3.2078]
[1750759632353,4.5834,2415.2,2414.8,2.0864]
[1750759633666,4.5834,2415.2,2414.8,0.6925]
[1750759634666,4.5834,2415.2,2414.8,2.1359]
[1750759635170,3.2078,2414.9,2414.3,0.0637515]
[1750759635466,1.3878,2414.8,2414.3,3.2715515]
[1750759636162,3.2078,2414.9,2414.3,3.2715515]
[1750759636462,7.4504,2415.2,2414.4,2.1486]
[1750759636663,1.08515094,2415.1,2414.4,2.1486]
[1750759636859,1.3878,2415.1,2414.4,2.1486]
[1750759637970,1.08532487,2415.0,2414.4,0.7052]
[1750759638162,1.3165,2414.9,2414.4,0.7052]
[1750759638768,1.3165,2414.9,2414.4,2.1481]
[1750759638966,4.5243,2414.9,2414.4,0.7052]
[1750759639270,4.5243,2414.9,2414.3,0.0637515]
[1750759639271,3.2078,2414.6,2414.3,0.0637515]
[1750759639462,3.2078,2414.6,2413.6,4.6507]
[1750759639463,3.72184008,2414.5,2413.7,1.4042]
[1750759639660,3.2078,2414.3,2413.7,1.4042]
[1750759639868,1.3165,2414.2,2413.7,1.4042]
[1750759640266,1.3165,2414.2,2413.6,3.2078]
[1750759641271,3.2078,2414.0,2413.3,2.6807]
[1750759641575,2.0403,2413.9,2413.3,2.6807]
[1750759642071,0.6604,2413.8,2413.3,2.6807]
[1750759642274,2.0234,2413.8,2413.3,2.6807]
[1750759642473,2.0234,2413.8,2413.3,1.3337]
[1750759644362,2.0234,2413.8,2413.3,4.5415]
[1750759644859,0.6604,2413.8,2413.3,4.5415]
[1750759645064,0.6604,2413.8,2413.4,1.3084]
[1750759646168,0.6604,2413.8,2413.3,3.8611]
[1750759646364,0.6604,2413.8,2413.4,2.0076]
[1750759646573,0.6604,2413.8,2413.4,0.6992]
[1750759646771,1.0888618,2413.7,2413.3,0.6533]
[1750759646974,1.3558,2413.6,2413.3,0.6533]
[1750759647665,0.6604,2413.8,2413.3,0.6533]
[1750759647864,1.08903476,2413.7,2413.3,0.6533]
[1750759648076,0.6604,2413.8,2413.3,0.6533]
[1750759648374,1.08898673,2413.7,2413.3,0.6533]
[1750759648571,0.6604,2413.8,2413.3,0.6533]
[1750759648875,1.08993029,2413.7,2413.3,0.6533]
[1750759649174,2.0162,2413.8,2413.3,0.6533]
[1750759649674,2.0162,2413.8,2413.4,1.4298]
[1750759650071,0.6604,2413.8,2413.4,1.4298]
[1750759650475,0.6773,2413.9,2413.4,1.4298]
[1750759650774,1.08986297,2413.8,2413.4,1.4298]
[1750759650970,2.0747,2413.9,2413.4,1.4298]
[1750759651167,1.08991001,2413.8,2413.4,1.4298]
[1750759651370,2.0747,2413.9,2413.4,1.4298]
[1750759651579,1.0898805,2413.8,2413.4,1.4298]
[1750759651773,2.0747,2413.9,2413.4,1.4298]
[1750759652075,1.0898044,2413.8,2413.4,1.4298]
[1750759652375,2.0747,2413.9,2413.4,1.4298]
[1750759652577,1.08597479,2413.8,2413.3,3.8611]
[1750759652766,2.0747,2413.9,2413.3,3.8611]
[1750759652962,2.53439067,2413.8,2413.3,3.8611]
[1750759653179,1.4484,2413.8,2413.3,3.8611]
[1750759654577,1.4484,2413.8,2413.4,0.0637515]
[1750759655480,3.2078,2413.6,2413.4,0.0637515]
[1750759655683,1.4288,2413.5,2413.4,0.0637515]
[1750759655977,2.1009,2413.5,2413.4,0.0637515]
[1750759656879,3.18662274,2413.5,2413.4,0.0637515]
[1750759657380,3.18662552,2413.5,2413.4,0.0637515]
[1750759658181,2.1009,2413.5,2413.4,0.0637515]
[1750759658384,0.6721,2413.5,2413.4,0.0637515]
[1750759658585,3.2078,2413.6,2413.4,0.0637515]
[1750759658779,3.8851,2413.9,2413.4,0.0637515]
[1750759658976,3.2078,2413.9,2413.5,2.7626]
[1750759659180,3.2078,2414.2,2413.6,3.2078]
[1750759659382,0.7204,2414.6,2413.9,3.2078]
[1750759659584,3.2078,2414.8,2414.0,2.0725]
[1750759659780,1.08541883,2414.7,2414.0,2.0725]
[1750759659981,1.08541883,2414.6,2414.0,2.0725]
[1750759660181,4.6564,2414.8,2414.2,3.2078]
[1750759660482,1.08552035,2414.7,2414.3,1.3616]
[1750759660679,1.08570267,2414.6,2414.3,1.3616]
[1750759660877,4.6564,2414.8,2414.3,1.3616]
[1750759661079,1.08571419,2414.7,2414.3,1.3616]
[1750759661384,1.08571455,2414.6,2414.3,1.3616]
[1750759661579,4.6564,2414.8,2414.3,1.3616]
[1750759661884,1.08591911,2414.7,2414.3,1.3616]
[1750759662086,3.2078,2414.8,2414.4,0.6984]
[1750759662282,1.0853879,2414.7,2414.5,1.3334]
[1750759662478,3.2078,2414.8,2414.5,1.9909]
[1750759662682,1.08569346,2414.7,2414.5,1.9909]
[1750759662881,3.2078,2414.8,2414.5,1.9909]
[1750759663681,1.08590348,2414.7,2414.5,1.9909]
[1750759663880,3.2078,2414.8,2414.5,1.9909]
[1750759664081,1.08590282,2414.7,2414.5,1.9909]
[1750759664387,3.2078,2414.8,2414.5,1.9909]
[1750759664592,1.08591407,2414.7,2414.5,1.9909]
[1750759664889,3.2078,2414.8,2414.5,1.9909]
[1750759665191,1.08622652,2414.7,2414.5,1.9909]
[1750759665488,3.2078,2414.8,2414.5,1.9909]
[1750759665792,1.08624039,2414.7,2414.5,1.9909]
[1750759666089,3.2078,2414.8,2414.5,1.9909]
[1750759666692,3.2078,2414.8,2414.2,3.2078]
[1750759666693,1.08617848,2414.7,2414.2,3.2078]
[1750759666889,2.0278,2414.7,2413.8,3.2078]
[1750759667083,2.0278,2414.7,2413.9,1.3239]
[1750759667485,1.08553091,2414.6,2414.0,0.6739]
[1750759667790,2.0278,2414.7,2414.1,2.0149]
[1750759668087,1.08574477,2414.6,2414.1,5.2227]
[1750759668297,1.08574193,2414.5,2414.1,2.0149]
[1750759668490,2.0278,2414.7,2414.1,2.0149]
[1750759668793,1.08591571,2414.6,2414.1,2.0149]
[1750759668993,0.6895,2414.7,2414.1,5.2227]
[1750759669290,3.2078,2414.8,2414.1,5.2227]
[1750759669490,1.08581873,2414.7,2414.1,5.2227]
[1750759669795,3.2078,2414.8,2414.1,5.2227]
[1750759670802,3.2078,2414.8,2414.2,0.0637515]
[1750759671493,3.2078,2414.8,2414.3,1.4123]
[1750759672394,4.8508,2415.1,2414.2,0.0637515]
[1750759672395,3.2078,2414.4,2414.2,0.0637515]
[1750759672695,3.2078,2414.7,2414.1,3.2078]
[1750759672898,3.2078,2414.7,2414.2,0.6577]
[1750759673089,3.2078,2414.7,2414.3,0.7211]
[1750759673397,3.2078,2414.7,2414.4,1.4123]
[1750759675294,3.2078,2415.0,2414.4,4.6201]
[1750759675496,0.7204,2415.2,2414.7,3.2078]
[1750759675796,2.47322405,2415.7,2414.3,0.7211]
[1750759675797,3.2078,2415.6,2415.0,3.2078]
[1750759675992,3.2078,2415.6,2415.1,2.0417]
[1750759676197,4.5735,2416.3,2415.3,3.2078]
[1750759676398,3.2078,2416.0,2415.4,1.3489]
[1750759676599,3.2078,2416.0,2415.4,2.028]
[1750759677497,1.3688,2415.9,2415.4,2.028]
[1750759678197,1.3688,2415.9,2415.4,0.6791]
[1750759678593,1.3688,2415.9,2415.4,2.1249]
[1750759679294,0.6992,2415.8,2415.4,0.6791]
[1750759680597,0.6992,2415.8,2415.4,1.9932]
[1750759680798,3.2078,2416.0,2415.4,1.9932]
[1750759681309,3.2078,2416.0,2415.6,3.2078]
[1750759681696,1.314,2415.9,2415.6,3.2078]
[1750759683105,3.2078,2416.0,2415.6,3.2078]
[1750759683297,3.2078,2416.0,2415.7,1.4339]
[1750759683900,3.2078,2416.0,2415.8,0.6881]
[1750759684107,3.2078,2416.0,2415.6,3.2078]
[1750759684705,1.4247,2415.9,2415.6,3.2078]
[1750759685403,1.4247,2415.9,2415.4,0.6791]
[1750759685806,1.4247,2415.9,2415.6,0.0637515]
[1750759686205,3.2078,2416.0,2415.6,0.0637515]
[1750759686505,0.6772,2416.2,2415.7,3.2078]
[1750759686703,0.6772,2416.2,2415.6,0.0637515]
[1750759686907,1.3506,2416.1,2415.6,0.0637515]
[1750759687400,3.2078,2416.3,2415.8,3.2078]
[1750759687601,2.867,2416.9,2415.9,0.665]
[1750759687602,3.2078,2416.4,2415.9,0.665]
[1750759688206,3.2078,2416.4,2415.9,2.078]
[1750759689207,1.3506,2416.6,2415.9,2.078]
[1750759689507,1.3506,2416.6,2416.1,3.2078]
[1750759690107,3.2078,2416.7,2416.1,3.2078]
[1750759690596,4.5648,2416.7,2416.1,3.2078]
[1750759690799,4.5648,2416.7,2416.2,0.6709]
[1750759690999,4.5648,2416.7,2416.2,2.0113]
[1750759691400,4.5648,2416.7,2416.1,3.2078]
[1750759692507,3.2078,2416.7,2416.1,3.2078]
[1750759692707,4.601,2416.7,2416.1,4.63]
[1750759694108,4.601,2416.7,2416.1,4.96136649]
[1750759694408,4.601,2416.7,2416.1,4.63]
[1750759697311,3.2078,2416.4,2415.8,3.2078]
[1750759697509,2.0736,2416.3,2415.8,3.2078]
[1750759697709,0.6887,2416.2,2415.8,3.2078]
[1750759698017,1.3846,2416.1,2415.8,3.2078]
[1750759700515,0.6887,2416.2,2415.8,3.2078]
[1750759701028,0.6887,2416.2,2416.1,0.0637515]
[1750759701914,0.689,2416.3,2416.1,0.0637515]
[1750759702515,2.0343,2416.3,2416.1,0.0637515]
[1750759704615,3.8869,2416.7,2416.1,3.2715515]
[1750759704813,1.08964649,2416.6,2416.2,1.9835]
[1750759705014,1.08964649,2416.5,2416.2,1.9835]
[1750759705212,5.2516,2416.7,2416.2,1.9835]
[1750759705414,1.08960579,2416.6,2416.2,1.9835]
[1750759705610,1.08960579,2416.5,2416.2,1.9835]
[1750759705812,3.2078,2416.7,2416.3,1.3144]
[1750759706014,1.09030806,2416.6,2416.3,1.3144]
[1750759706215,3.2078,2416.7,2416.2,0.6691]
[1750759706514,0.7193,2417.1,2416.5,3.2078]
[1750759706710,0.7193,2417.1,2416.8,3.2078]
[1750759706911,3.2078,2417.4,2416.8,3.2078]
[1750759707112,1.08972978,2417.3,2417.1,3.2078]
[1750759707318,5.9788,2417.5,2417.1,3.2078]
[1750759707509,1.08967276,2417.4,2417.1,3.2078]
[1750759707709,2.771,2417.5,2417.1,3.2078]
[1750759707710,1.4063,2417.5,2417.1,3.2078]
[1750759708211,1.4063,2417.5,2417.2,0.6587]
[1750759709215,4.6094,2417.8,2417.2,2.0474]
[1750759709413,1.08851993,2417.7,2417.2,2.0474]
[1750759709715,3.2078,2417.8,2417.2,2.0474]
[1750759710014,1.3617,2418.0,2417.3,1.3887]
[1750759710318,1.08806314,2417.9,2417.4,3.8897]
[1750759710615,2.7963,2418.0,2417.4,3.8897]
[1750759710819,1.08728632,2417.9,2417.4,3.8897]
[1750759711016,0.6735,2418.0,2417.5,1.3798]
[1750759711225,2.867,2418.3,2417.8,3.2078]
[1750759711417,1.08718167,2418.2,2417.8,3.2078]
[1750759711722,4.6424,2418.5,2417.8,3.2078]
[1750759711917,4.6424,2418.5,2417.9,2.0385]
[1750759713719,4.6424,2418.5,2417.9,2.6961]
[1750759714826,1.4182,2418.6,2417.9,2.6961]
[1750759715126,1.4182,2418.6,2418.2,3.2078]
[1750759715327,1.4286,2418.5,2418.2,3.2078]
[1750759716625,1.4286,2418.5,2417.9,1.3163]
[1750759717632,1.4286,2418.5,2417.8,3.2078]
[1750759718427,3.2078,2418.0,2417.2,1.3719]
[1750759718635,2.7784,2417.9,2417.2,1.3719]
[1750759718831,2.7784,2417.9,2417.0,3.2078]
[1750759719032,3.2078,2417.7,2417.0,3.2078]
[1750759719236,1.3771,2417.6,2417.0,3.2078]
[1750759719535,1.4013,2417.9,2417.4,3.2078]
[1750759719929,1.4013,2417.9,2417.5,2.1314]
[1750759720129,0.7086,2417.9,2417.5,2.1314]
[1750759720342,0.7086,2417.9,2417.5,0.6945]
[1750759721031,1.3339,2417.8,2417.5,0.6945]
[1750759721632,1.3339,2417.8,2417.4,3.2078]
[1750759722038,1.3339,2417.8,2417.1,3.2078]
[1750759724335,1.3339,2417.8,2417.2,1.3439]
[1750759724641,1.3339,2417.8,2417.3,0.7118]
[1750759724841,1.3339,2417.8,2417.3,1.4231]
[1750759725137,0.7086,2417.9,2417.5,3.2078]
[1750759727744,1.3513,2417.8,2417.5,3.2078]
[1750759730239,0.7086,2417.9,2417.5,3.2078]
[1750759730946,3.2078,2417.8,2417.2,3.2078]
[1750759731147,4.5987,2417.8,2417.2,3.2078]
[1750759731938,4.5987,2417.8,2417.3,2.013]
[1750759732140,3.2078,2417.8,2417.4,0.7081]
[1750759732343,3.2078,2417.8,2417.5,1.3526]
[1750759733048,3.2078,2417.8,2417.4,0.7081]
[1750759734243,3.2078,2417.8,2417.4,2.0607]
[1750759734645,3.2078,2417.8,2417.4,0.7081]
[1750759734851,4.5433,2417.8,2417.4,0.7081]
[1750759735749,4.5433,2417.8,2417.3,0.6604]
[1750759736649,1.09044937,2417.7,2417.3,0.6604]
[1750759736850,1.3355,2417.7,2417.3,0.6604]
[1750759737149,0.6961,2417.6,2417.3,0.6604]
[1750759739253,3.2078,2417.8,2417.3,0.6604]
[1750759739453,1.3904,2417.9,2417.3,2.0057]
[1750759739645,1.09068104,2417.8,2417.3,2.0057]
[1750759739846,2.785,2417.9,2417.3,2.0057]
[1750759740047,1.09073706,2417.8,2417.4,0.7199]
[1750759740248,2.785,2417.9,2417.4,2.0652]
[1750759740447,1.090747,2417.8,2417.4,2.0652]
[1750759740647,2.785,2417.9,2417.4,2.0652]
[1750759740849,1.09066627,2417.8,2417.3,0.6604]
[1750759741052,1.4061,2417.7,2417.3,0.6604]
[1750759743045,1.3904,2417.9,2417.3,2.0354]
[1750759743252,1.08875024,2417.8,2417.3,2.0354]
[1750759743548,1.4061,2417.8,2417.3,2.0354]
[1750759743751,1.3904,2417.9,2417.3,2.0354]
[1750759744052,1.08898387,2417.8,2417.3,2.0354]
[1750759744251,1.3904,2417.9,2417.3,2.0354]
[1750759744444,1.08902864,2417.8,2417.5,3.2078]
[1750759744644,1.3904,2417.9,2417.5,3.2078]
[1750759744844,1.08929255,2417.8,2417.5,3.2078]
[1750759745053,1.3904,2417.9,2417.5,3.2078]
[1750759745251,1.08929161,2417.8,2417.5,3.2078]
[1750759745454,1.427,2417.8,2417.5,3.2078]
[1750759745646,1.0899923,2417.7,2417.5,3.2078]
[1750759745951,1.427,2417.8,2417.5,3.2078]
[1750759746151,1.08998693,2417.7,2417.5,3.2078]
[1750759746457,1.427,2417.8,2417.5,3.2078]
[1750759746646,1.427,2417.6,2417.5,3.2078]
[1750759746845,2.51808189,2417.6,2417.5,3.2078]
[1750759747248,1.09108189,2417.6,2417.5,3.2078]
[1750759747447,1.09110879,2417.6,2417.5,3.2078]
[1750759747749,1.09110879,2417.8,2417.5,3.2078]
[1750759747956,1.09110879,2417.7,2417.5,3.2078]
[1750759748553,1.09110879,2417.6,2417.3,0.6604]
[1750759748754,1.09110879,2417.5,2417.3,0.6604]
[1750759748950,1.416,2417.8,2417.3,0.6604]
[1750759749152,1.09201182,2417.7,2417.3,0.6604]
[1750759749354,2.50801182,2417.6,2417.3,0.6604]
[1750759749552,1.09201182,2417.5,2417.3,0.6604]
[1750759749753,1.416,2417.6,2417.3,0.6604]
[1750759749949,1.09194534,2417.5,2417.3,0.6604]
[1750759750145,1.416,2417.6,2417.3,0.6604]
[1750759750346,1.09195343,2417.5,2417.3,0.6604]
[1750759750546,1.416,2417.6,2417.3,0.6604]
[1750759750748,1.09192431,2417.5,2417.3,0.6604]
[1750759750954,1.3904,2417.9,2417.3,0.6604]
[1750759751160,1.09185401,2417.8,2417.3,0.6604]
[1750759751451,1.09185401,2417.7,2417.3,0.6604]
[1750759751758,1.09185401,2417.6,2417.3,0.6604]
[1750759751953,2.8133,2417.9,2417.3,0.6604]
[1750759752251,1.09188758,2417.8,2417.3,0.6604]
[1750759752452,1.09188758,2417.7,2417.3,0.6604]
[1750759752650,1.09188758,2417.6,2417.3,0.6604]
[1750759752849,2.8133,2417.9,2417.3,0.6604]
[1750759753050,1.09199867,2417.8,2417.3,0.6604]
[1750759753248,1.09199867,2417.7,2417.3,0.6604]
[1750759753447,1.09199867,2417.6,2417.3,0.6604]
[1750759753648,1.3482,2417.8,2417.3,0.6604]
[1750759753850,1.09197889,2417.7,2417.3,0.6604]
[1750759754045,1.09197889,2417.6,2417.3,0.6604]
[1750759754250,1.3482,2417.8,2417.3,0.6604]
[1750759754459,1.09197847,2417.7,2417.3,0.6604]
[1750759754661,1.09197847,2417.6,2417.3,0.6604]
[1750759754858,1.3482,2417.8,2417.3,0.6604]
[1750759755158,1.09199721,2417.7,2417.3,0.6604]
[1750759755357,1.09199721,2417.6,2417.3,0.6604]
[1750759755558,1.09199721,2417.5,2417.3,0.6604]
[1750759755759,1.3482,2417.8,2417.3,0.6604]
[1750759755960,1.09201902,2417.7,2417.3,0.6604]
[1750759756257,1.09201902,2417.6,2417.3,0.6604]
[1750759756458,1.09201902,2417.5,2417.3,0.6604]
[1750759756658,1.3482,2417.8,2417.3,0.6604]
[1750759756861,1.09204243,2417.7,2417.3,0.6604]
[1750759757059,1.09204243,2417.6,2417.3,0.6604]
[1750759757252,1.09204243,2417.5,2417.3,0.6604]
[1750759757561,1.3482,2417.8,2417.3,0.6604]
[1750759757761,1.09199448,2417.7,2417.3,0.6604]
[1750759757961,1.09199448,2417.6,2417.3,0.6604]
[1750759758161,1.3482,2417.8,2417.3,0.6604]
[1750759758364,1.09198599,2417.7,2417.3,0.6604]
[1750759758564,1.09198599,2417.6,2417.3,0.6604]
[1750759758768,1.3482,2417.8,2417.3,0.6604]
[1750759758964,1.09198738,2417.7,2417.3,0.6604]
[1750759759162,1.09198738,2417.6,2417.3,0.6604]
[1750759759364,1.3482,2417.8,2417.3,0.6604]
[1750759759562,1.0920095,2417.7,2417.3,0.6604]
[1750759759757,1.0920095,2417.6,2417.3,0.6604]
[1750759760050,1.3482,2417.8,2417.3,0.6604]
[1750759760249,1.09199334,2417.7,2417.3,0.6604]
[1750759760464,2.48579334,2417.6,2417.1,3.2078]
[1750759760659,3.2078,2417.4,2416.6,3.27674144]
[1750759760964,3.2078,2417.1,2416.6,0.6914]
[1750759761161,1.09199334,2417.0,2416.7,1.3119]
[1750759761359,3.2078,2417.1,2416.7,1.3119]
[1750759761663,1.3421,2417.3,2416.8,3.2078]
[1750759761964,1.09142577,2417.2,2416.9,1.3119]
[1750759762265,3.2078,2417.4,2416.9,1.3119]
[1750759762462,1.09111782,2417.3,2416.9,1.3119]
[1750759762663,1.09111782,2417.2,2416.9,1.3119]
[1750759762963,3.2078,2417.4,2416.9,1.3119]
[1750759763162,1.09113352,2417.3,2416.9,1.3119]
[1750759763365,1.09113352,2417.2,2416.8,3.2078]
[1750759763560,2.1063,2417.2,2416.8,3.2078]
[1750759763758,2.1063,2417.2,2416.6,0.6914]
[1750759763959,1.09102759,2417.1,2416.6,0.6914]
[1750759764262,3.16426993,2417.0,2416.6,0.6914]
[1750759764556,2.0732,2417.0,2416.6,0.6914]
[1750759765565,0.6547,2417.0,2416.6,0.6914]
[1750759765768,0.6878,2417.2,2416.8,3.2078]
[1750759765965,1.09003863,2417.1,2416.8,3.2078]
[1750759766265,0.6878,2417.2,2416.8,3.2078]
[1750759767664,2.0855,2417.2,2416.8,3.2078]
[1750759769269,1.0887952,2417.1,2416.8,3.2078]
[1750759769468,1.407,2417.0,2416.8,3.2078]
[1750759770367,1.407,2417.0,2416.6,0.6914]
[1750759775171,4.6148,2417.0,2416.2,3.2078]
[1750759775386,3.2078,2416.7,2415.9,3.8736]
[1750759775577,3.15626144,2416.6,2415.9,3.8736]
[1750759775780,0.7014,2416.6,2416.0,1.4236]
[1750759777378,2.7389,2416.6,2416.0,1.4236]
[1750759778472,1.3648,2416.6,2416.0,1.4236]
[1750759779378,1.3648,2416.6,2415.9,3.2078]
[1750759779582,3.2078,2416.4,2415.6,3.2078]
[1750759779782,3.2078,2416.4,2415.7,0.6676]
[1750759779980,2.46184301,2416.3,2415.7,2.0878]
[1750759780279,1.3741,2416.3,2415.7,0.6676]
[1750759780478,0.7185,2416.2,2415.7,0.6676]
[1750759780676,1.3571,2416.1,2415.7,0.6676]
[1750759780876,0.6836,2416.0,2415.7,0.6676]
[1750759782279,0.7185,2416.2,2415.7,2.0365]
[1750759782479,0.7185,2416.2,2415.7,2.6957]
[1750759782679,0.7185,2416.2,2415.9,3.2078]
[1750759783382,0.7185,2416.2,2415.7,1.3268]
[1750759783584,1.4004,2416.1,2415.7,1.3268]
[1750759784379,1.4004,2416.1,2415.7,0.6676]
[1750759785082,0.7185,2416.2,2415.7,0.6676]
[1750759785283,0.7185,2416.2,2415.8,1.4056]
[1750759786078,3.2078,2416.4,2415.9,3.2078]
[1750759786384,3.2078,2416.4,2416.0,1.334]
[1750759786777,3.2078,2416.4,2416.1,0.7106]
[1750759788685,1.3875,2416.6,2416.1,0.7106]
[1750759788885,1.3875,2416.6,2416.2,1.334]
[1750759790189,1.3875,2416.6,2416.2,4.5418]
[1750759790392,1.3875,2416.6,2416.2,1.334]
[1750759791488,1.3875,2416.6,2416.2,4.5418]
[1750759791690,1.3875,2416.6,2416.2,1.334]
[1750759791992,1.3875,2416.6,2416.2,4.5418]
[1750759792488,1.3875,2416.6,2416.3,1.4052]
[1750759793386,3.2078,2416.7,2416.3,1.4052]
[1750759793592,4.5486,2417.0,2416.3,1.4052]
[1750759793794,1.08764704,2416.9,2416.3,1.4052]
[1750759794092,4.5486,2417.0,2416.3,1.4052]
[1750759794294,1.0876986,2416.9,2416.3,1.4052]
[1750759794591,4.5486,2417.0,2416.3,1.4052]
[1750759794890,1.08798204,2416.9,2416.3,1.4052]
[1750759795093,1.08798204,2416.8,2416.3,1.4052]
[1750759795291,1.4006,2416.9,2416.3,1.4052]
[1750759795493,1.08807737,2416.8,2416.5,3.2078]
[1750759795689,4.5486,2417.0,2416.6,0.7241]
[1750759795887,1.08810963,2416.9,2416.6,0.7241]
[1750759796087,4.5486,2417.0,2416.6,0.7241]
[1750759796288,1.08812871,2416.9,2416.6,0.7241]
[1750759796490,4.5486,2417.0,2416.6,0.7241]
[1750759796691,1.0882971,2416.9,2416.6,0.7241]
[1750759796888,4.5486,2417.0,2416.6,0.7241]
[1750759797094,1.08827666,2416.9,2416.6,0.7241]
[1750759797391,4.5486,2417.0,2416.6,0.7241]
[1750759797589,1.08824538,2416.9,2416.6,0.7241]
[1750759797794,4.5486,2417.0,2416.6,0.7241]
[1750759797994,1.08827611,2416.9,2416.6,0.7241]
[1750759798192,4.5486,2417.0,2416.6,0.7241]
[1750759798390,1.08832771,2416.9,2416.6,0.7241]
[1750759798590,1.08832771,2416.8,2416.6,0.7241]
[1750759798898,4.5486,2417.0,2416.6,0.7241]
[1750759799088,1.08853113,2416.9,2416.6,0.7241]
[1750759799288,4.5486,2417.0,2416.6,0.7241]
[1750759799587,1.08869956,2416.9,2416.6,0.7241]
[1750759799888,1.08869956,2416.8,2416.6,0.7241]
[1750759800082,4.5486,2417.0,2416.6,0.7241]
[1750759800285,1.08875188,2416.9,2416.6,0.7241]
[1750759800484,4.5486,2417.0,2416.6,0.7241]
[1750759800697,1.08934723,2416.9,2416.6,0.7241]
[1750759800996,4.5486,2417.0,2416.6,0.7241]
[1750759801194,1.08944622,2416.9,2416.6,0.7241]
[1750759801501,4.5486,2417.0,2416.6,0.7241]
[1750759801795,1.08915214,2416.9,2416.6,0.7241]
[1750759801992,4.5486,2417.0,2416.6,0.7241]
[1750759802190,1.08894313,2416.9,2416.6,0.7241]
[1750759802388,4.5486,2417.0,2416.6,0.7241]
[1750759802589,1.08914855,2416.9,2416.6,0.7241]
[1750759802794,4.5486,2417.0,2416.6,0.7241]
[1750759802996,1.08847555,2416.9,2416.5,3.2078]
[1750759803295,1.4382,2416.9,2416.5,3.2078]
[1750759806306,4.5486,2417.0,2416.5,3.2078]
[1750759806595,4.5486,2417.0,2416.6,2.0797]
[1750759806798,4.5486,2417.0,2416.6,2.75]
[1750759809595,3.8921,2417.0,2416.6,2.75]
[1750759809801,1.3699,2417.3,2416.8,3.2078]
[1750759809998,1.78005119,2417.2,2416.8,3.2078]
[1750759810199,0.6904,2417.2,2416.8,3.2078]
[1750759810598,0.6842,2417.4,2416.8,3.2078]
[1750759810793,6.38743664,2417.3,2416.8,3.2078]
[1750759811096,5.2978,2417.3,2416.8,3.2078]
[1750759812401,1.08955069,2417.2,2416.8,3.2078]
[1750759812703,1.3996,2417.1,2416.8,3.2078]
[1750759814306,0.6904,2417.3,2416.8,3.2078]
[1750759814707,2.0639,2417.3,2416.8,3.2078]
[1750759815408,1.09057676,2417.2,2416.8,3.2078]
[1750759815600,0.6904,2417.3,2416.8,3.2078]
[1750759816106,0.6904,2417.3,2416.9,1.3204]
[1750759816507,0.6904,2417.3,2417.0,0.6719]
[1750759816705,0.6904,2417.3,2417.2,3.2078]
[1750759817011,0.6842,2417.4,2417.2,3.2078]
[1750759818111,0.6642,2417.6,2417.2,3.2078]
[1750759818312,1.09009477,2417.5,2417.2,3.2078]
[1750759818610,1.09009477,2417.4,2417.2,3.2078]
[1750759818811,0.6642,2417.6,2417.2,3.2078]
[1750759819007,1.0902494,2417.5,2417.2,3.2078]
[1750759819199,1.0902494,2417.4,2417.2,3.2078]
[1750759819404,0.6642,2417.6,2417.2,3.2078]
[1750759819603,1.09027346,2417.5,2417.1,0.6916]
[1750759819913,1.09027346,2417.4,2417.1,0.6916]
[1750759820100,0.6642,2417.6,2417.1,0.6916]
[1750759820101,1.4282,2417.5,2417.1,0.6916]
[1750759820301,1.09024171,2417.4,2417.1,0.6916]
[1750759820508,1.4282,2417.5,2417.1,0.6916]
[1750759820713,1.09031108,2417.4,2417.1,0.6916]
[1750759820908,1.4282,2417.5,2417.1,0.6916]
[1750759821207,1.09033779,2417.4,2417.1,0.6916]
[1750759821409,1.09033779,2417.3,2417.1,0.6916]
[1750759821707,1.4282,2417.5,2417.1,0.6916]
[1750759821907,1.0904222,2417.4,2417.1,0.6916]
[1750759822105,1.4282,2417.5,2417.1,0.6916]
[1750759822308,1.09050501,2417.4,2417.0,0.6719]
[1750759822511,6.38150501,2417.3,2416.6,3.2078]
[1750759822710,1.78680501,2417.2,2416.6,3.2078]
[1750759822907,2.44768079,2417.1,2416.6,3.2078]
[1750759823111,1.3572,2417.1,2416.6,3.2078]
[1750759823308,1.3572,2417.1,2416.7,0.7119]